Cogmind - Beta 13 @@@ ROGUE MODE // 2024.04.12 @ 19:02:01 Player: Gimcond Result: Destroyed by ZP-P4B(R) with Subdweller Machine Gun Performance ------------- Evolutions (0) 0 Regions Visited (3) 600 Robots Destroyed (13) 65 Value Destroyed (254) 254 Prototype IDs (0) 0 Alien Tech Used (0) 0 Bonus (0) 0 TOTAL SCORE: 919 Bonus ------- None Cogmind --------- Core Integrity 0/250 Matter 290/300 Energy 199/200 System Corruption 0% Temperature Cool (0) Movement Rolling (110) Location -10/Subcaves Parts ------- > --- POWER (1) -------- Subdweller Power Source > --- PROPULSION (2) --- Subdweller Monowheel > --- UTILITY (2) ------ Medium Storage Unit Signal Interpreter > --- WEAPON (2) ------- (None) > --- INVENTORY (10) --- Subdweller Power Source Compact Wheel Subdweller Monowheel Subdweller Optics Signal Interpreter Makeshift Light Armor Plating Scrap Shield Piercing Trap Peak State ------------ > --- POWER ------------ Subdweller Power Source > --- PROPULSION ------- Subdweller Monowheel Subdweller Monowheel > --- UTILITY ---------- Medium Storage Unit Signal Interpreter > --- WEAPON ----------- Beamcaster > --- INVENTORY -------- Subdweller Power Source Compact Wheel Subdweller Monowheel Subdweller Optics Signal Interpreter Makeshift Light Armor Plating Scrap Shield Piercing Trap [Rating: 14] Favorites ----------- Power Light Ion Engine Engine Light Ion Engine Propulsion Wheel Wheel Wheel Flight Unit Flight Unit Utility Signal Interpreter Device Tractor Beam Storage Medium Storage Unit Processor Signal Interpreter Weapon Assault Rifle Energy Gun Medium Laser Ballistic Gun Assault Rifle Build | -11 -10 -10 -10 ------- Run | Yrd Mat Min Sub Slots Evolved . | . . . . Power . | . . . . Propulsion . | . . . . Utility . | . . . . Weapon . | . . . . Parts Attached 21 | 6 6 2 7 Power 4 | 1 1 . 2 Engine 4 | 1 1 . 2 Core . | . . . . Reactor . | . . . . Propulsion 8 | 2 2 2 2 Treads . | . . . . Leg . | . . . . Wheel 6 | 2 . 2 2 Hover . | . . . . Flight 2 | . 2 . . Utility 4 | 1 3 . . Device 1 | . 1 . . Storage 2 | 1 1 . . Processor 1 | . 1 . . Hackware . | . . . . Protection . | . . . . Artifact . | . . . . Weapon 5 | 2 . . 3 Energy Gun 3 | 1 . . 2 Energy Cannon . | . . . . Ballistic Gun 2 | 1 . . 1 Ballistic Cannon . | . . . . Launcher . | . . . . Special Weapon . | . . . . Impact Weapon . | . . . . Slashing Weapon . | . . . . Piercing Weapon . | . . . . Special Melee Weapon . | . . . . Unidentified Prototypes . | . . . . Parts Lost 9 | . 3 . 6 Power 2 | . 1 . 1 Propulsion 3 | . 1 . 2 Utility . | . . . . Weapon 4 | . 1 . 3 Highest Loss Streak 5 | . 2 . 5 To Critical Strikes . | . . . . Average Slot Usage (%) 92 | . 98 85 94 Engine 13 | . 12 14 14 Wheel 26 | . 23 28 27 Flight 1 | . 4 . . Storage 14 | . 14 14 14 Processor 13 | . 12 14 14 Energy Gun 6 | . 14 . 5 Ballistic Gun 15 | . 14 14 17 Naked Turns . | . . . . Heaviest Build 21 | 14 19 15 21 Greatest Support 40 | 26 26 20 40 Greatest Overweight (x) 3 | . 3 . . Average Overweight (x) . | . . . . Largest Inventory Capacity 10 | 8 10 10 10 Average Capacity 9 | 7 9 10 10 Most Carried 10 | 8 10 9 10 Average Carried 8 | 3 8 8 9 Final Capacity 10 | 8 10 10 10 Final Carried 9 | 8 9 8 9 Class Distribution -------------------- 76% | Mutant 23% | Scavenger-Mutant Dominant Class ---------------- Mutant | -10/Materials Mutant | -10/Mines Scavenger-Mutant | -10/Subcaves Resources | -11 -10 -10 -10 ----------- Run | Yrd Mat Min Sub Matter Collected 563 | 179 163 . 221 Remotely . | . . . . Salvage Created 459 | 126 245 . 88 Parts 29 | 8 16 . 5 Haulers Intercepted 1 | . 1 . . Recyclers Shooed . | . . . . Parts Field Recycled . | . . . . Retrieved Matter . | . . . . Parts Self-Destructed 8 | . . . 8 Prevented . | . . . . Kills | -11 -10 -10 -10 ------- Run | Yrd Mat Min Sub Combat Hostiles Destroyed 8 | . 6 . 2 Guns 8 | . 6 . 2 Classes Destroyed 6 | 2 3 . 1 Tunneler 3 | 3 . . . Hauler 1 | . 1 . . Recycler 1 | 1 . . . Swarmer 3 | . 3 . . Grunt 3 | . 3 . . Subdweller 2 | . . . 2 Best Kill Streak 3 | 2 3 . 1 Combat Bots Only 3 | . 3 . 1 Max Kills in Single Turn 1 | 1 1 . 1 Gunslinging . | . . . . Exploded . | . . . . Melee . | . . . . Uniques/NPCs Destroyed . | . . . . Combat | -11 -10 -10 -10 -------- Run | Yrd Mat Min Sub Hostile Shots Fired 95 | . 68 . 27 Missed 29 | . 21 . 8 Damage Taken 1052 | . 522 . 530 Core 262 | . 163 . 99 Absorbed by Shields . | . . . . Core Remaining (%) 100 | 100 . . . Volleys Fired 70 | 10 37 . 23 Largest 2 | 2 2 . 2 Hottest 85 | 70 70 . 85 Shots Fired 130 | 20 74 . 36 Gun 130 | 20 74 . 36 Cannon . | . . . . Launcher . | . . . . Special . | . . . . Kinetic 67 | 10 37 . 20 Thermal 63 | 10 37 . 16 Explosive . | . . . . Electromagnetic . | . . . . Robot Hit Streak 10 | 4 8 . 10 Robot Miss Streak 5 | 5 4 . 2 Penetration Max . | . . . . Secondary Targets . | . . . . Shots Hit Robots 77 | 10 44 . 23 Core Hits 23 | 5 12 . 6 Critical Kills . | . . . . Critical Parts Destroyed . | . . . . Critical Strikes 2 | 1 . . 1 Burn 1 | 1 . . . Destroy 1 | . . . 1 Melee Attacks . | . . . . Impact . | . . . . Slashing . | . . . . Piercing . | . . . . Sneak Attacks . | . . . . Combat Hostiles . | . . . . Follow-up Attacks . | . . . . Damage Inflicted 1048 | 130 484 . 434 Guns 1048 | 130 484 . 434 Cannons . | . . . . Explosions . | . . . . Melee . | . . . . Ramming . | . . . . Kinetic 562 | 66 265 . 231 Thermal 486 | 64 219 . 203 Explosive . | . . . . Electromagnetic . | . . . . Impact . | . . . . Slashing . | . . . . Piercing . | . . . . Highest Corruption . | . . . . Average Corruption . | . . . . Corruption Purged . | . . . . Corruption Blocked . | . . . . Overload Shots . | . . . . Overflow Damage . | . . . . Projectiles . | . . . . Explosions . | . . . . Melee . | . . . . Knockbacks . | . . . . Impact . | . . . . Kinetic . | . . . . Secondary . | . . . . Self-Inflicted Damage . | . . . . Shots . | . . . . Rammed 1 | . 1 . . Targets Rammed 1 | . 1 . . Kicked . | . . . . Crushed . | . . . . Highest Temperature 171 | 36 171 . 14 Average Temperature 31 | 13 42 . 5 Received Heat Transfer 369 | . 270 . 99 Siege Activations . | . . . . Robots Corrupted . | . . . . Combat Hostiles . | . . . . Parts Fried . | . . . . Impact Corruptions . | . . . . Robots Melted . | . . . . Combat Hostiles . | . . . . Parts Melted 1 | 1 . . . Heat Transferred 1211 | 259 666 . 286 Parts Sabotaged . | . . . . Parts Stolen . | . . . . Parts Stripped . | . . . . Power Chain Reactions . | . . . . Alert | -11 -10 -10 -10 ------- Run | Yrd Mat Min Sub Peak Influence 253 | 20 253 12 . Initial 13 | . 13 12 . Average 48 | 6 94 11 . Maximum Alert Level 1 | . 1 . . Low Security (%) 94 | 100 87 100 . Level 1 5 | . 12 . . Level 2 . | . . . . Level 3 . | . . . . Level 4 . | . . . . Level 5 . | . . . . High Security . | . . . . Max Security . | . . . . Squads Dispatched 3 | . 3 . . Investigation 1 | . 1 . . Extermination . | . . . . Reinforcement 2 | . 2 . . Assault . | . . . . Garrison . | . . . . Intercept . | . . . . Searches Triggered . | . . . . Construction Impeded . | . . . . Haulers Reinforced . | . . . . Active Scanning Responses . | . . . . Cargo Convoy Interrupts . | . . . . Stealth | -11 -10 -10 -10 --------- Run | Yrd Mat Min Sub Distress Signals 2 | . 2 . . Communications Jammed . | . . . . Distress Signals . | . . . . Times Spotted 26 | . 15 . 11 Peak Tracking Total 6 | . 5 . 6 Tactical Retreats 3 | . 3 . . Traps | -11 -10 -10 -10 ------- Run | Yrd Mat Min Sub Traps Triggered 1 | . 1 . . Indirectly . | . . . . Trap Hack Attempts . | . . . . Triggered . | . . . . Disarmed . | . . . . Reprogrammed . | . . . . Reused . | . . . . Traps Extracted . | . . . . Installed . | . . . . Triggered . | . . . . Most Traps Carried 1 | . . . 1 Machines | -11 -10 -10 -10 ---------- Run | Yrd Mat Min Sub Machines Disabled . | . . . . Max in Single Turn . | . . . . Machines Repaired . | . . . . Machines Dismantled . | . . . . Machines Sabotaged . | . . . . Overloaded Fab Kills . | . . . . Hacking | -11 -10 -10 -10 --------- Run | Yrd Mat Min Sub Machines Accessed . | . . . . Terminals . | . . . . Fabricators . | . . . . Repair Stations . | . . . . Recycling Units . | . . . . Scanalyzers . | . . . . Garrison Access . | . . . . Total Hacks . | . . . . Successful . | . . . . Failed . | . . . . Catastrophic . | . . . . Database Lockouts . | . . . . Manual . | . . . . Terminals . | . . . . Fabricators . | . . . . Repair Stations . | . . . . Recycling Units . | . . . . Scanalyzers . | . . . . Garrison Access . | . . . . Terminal Hacks . | . . . . Fabricator Hacks . | . . . . Repair Station Hacks . | . . . . Recycling Unit Hacks . | . . . . Scanalyzer . | . . . . Garrison Access Hacks . | . . . . Unauthorized Hacks . | . . . . Terminals . | . . . . Fabricators . | . . . . Repair Stations . | . . . . Recycling Units . | . . . . Scanalyzers . | . . . . Garrison Access . | . . . . Data Cores Recovered . | . . . . Used . | . . . . Hacking Detections . | . . . . Full Trace Events . | . . . . Feedback Events . | . . . . Feedback Blocked . | . . . . Robot Schematics Acquired . | . . . . Robots Built . | . . . . Authchips . | . . . . Time . | . . . . Total Robot Build Rating . | . . . . Part Schematics Acquired . | . . . . Parts Built . | . . . . Authchips . | . . . . Time . | . . . . Total Part Build Rating . | . . . . Parts Repaired . | . . . . Time . | . . . . Parts Recycled . | . . . . Recycled Matter . | . . . . Retrieved Matter . | . . . . Retrieved Components . | . . . . Parts Scanalyzed . | . . . . Part Schematics Acquired . | . . . . Parts Damaged . | . . . . Bothacking | -11 -10 -10 -10 ------------ Run | Yrd Mat Min Sub Used RIF Installer . | . . . . Robots Hacked . | . . . . Non-combat . | . . . . Combat . | . . . . Robot Hacks Applied . | . . . . Relay Couplers Released . | . . . . Fabnet Peak Effective % . | . . . . Robots Rewired . | . . . . Allies Hacked . | . . . . Hacks Repelled . | . . . . Allies | -11 -10 -10 -10 -------- Run | Yrd Mat Min Sub Total Allies . | . . . . Largest Group . | . . . . Highest-Rated Group . | . . . . Highest-Rated Ally . | . . . . Total Orders . | . . . . Ally Attacks . | . . . . Total Damage . | . . . . Kills . | . . . . Allies Corrupted . | . . . . Allies Melted . | . . . . Intel | -11 -10 -10 -10 ------- Run | Yrd Mat Min Sub Robot Analysis Total . | . . . . Derelict Logs Recovered 1 | . . 1 . Drone Launches . | . . . . Drone Recoveries . | . . . . Exploration | -11 -10 -10 -10 ------------- Run | Yrd Mat Min Sub Turns Passed 1402 | 124 448 427 403 Spaces Moved 862 | 93 308 125 336 Core 27 | 27 . . . Treads . | . . . . Legs . | . . . . Wheels 799 | 66 272 125 336 Hover . | . . . . Flight 36 | . 36 . . Fastest Speed 50 | 50 90 80 80 Average Speed 93 | 78 104 80 93 Slowest Speed 285 | 90 285 80 110 Overloaded Moves . | . . . . Propulsion Burnouts . | . . . . Robots Hopped . | . . . . Cave-ins Triggered . | . . . . Exploration Rate (%) 20 | 5 43 24 10 Regions Visited 3 Branch Regions 2 Pre-discovered Areas 1 | . . . 1 Known Exits Taken 2 | . 1 1 . Unknown Exits Taken 1 | 1 . . . Scrap Searched 2 | . . . 2 Spaces Dug . | . . . . Terrain Destroyed . | . . . . Melee . | . . . . Projectile . | . . . . AOE . | . . . . Terrain Rammed . | . . . . Walls Destroyed . | . . . . Machines Disabled . | . . . . Actions | -11 -10 -10 -10 --------- Run | Yrd Mat Min Sub Total 1332 | 124 362 451 395 Wait 332 | . . 325 7 Move 859 | 92 307 124 336 Hop . | . . . . Pick Up 35 | 15 7 . 13 Fast Attach . | . . . . Attach 14 | 6 2 1 5 Detach . | . . . . Swap 7 | . 4 1 2 Drop 14 | 1 4 . 9 Fire 70 | 10 37 . 23 Melee . | . . . . Ram 1 | . 1 . . Kick . | . . . . Crush . | . . . . Escape Stasis . | . . . . Rewire . | . . . . Trap . | . . . . Miscellaneous . | . . . . Route ------- -11/Scrapyard -10/Materials (discovered 2 exits: *Min x2) -10/Mines -10/Subcaves History --------- Turn | Location | Event 5 | -11/Scrapyard | Discovered new exit (range 16) 125 | -11/Scrapyard | Entered Materials 132 | -10/Materials | Discovered new exit (range 15) 176 | -10/Materials | Identified exit to Mines 306 | -10/Materials | Build established: Mutant 308 | -10/Materials | Discovered exit to Mines (range 11) 484 | -10/Materials | Core integrity fell below 50% 573 | -10/Materials | Entered Mines 633 | -10/Mines | Identified exit to Subcaves 1000 | -10/Mines | Entered Subcaves 1135 | -10/Subcaves | Learned location of Zion (-7) 1135 | -10/Subcaves | Met a Zionite searching for "candidates" 1324 | -10/Subcaves | Ambushed by swarm of Subdwellers 1337 | -10/Subcaves | Build established: Scavenger-Mutant 1352 | -10/Subcaves | Core integrity fell below 20% 1397 | -10/Subcaves | Lost 4 allies 1403 | -10/Subcaves | Destroyed by ZP-P4B(R) with Subdweller Machine Gun Last Messages --------------- 01369_ Acquired 3 matter. 01370_ VW-XBQ(R) affixes Scrap Shield Fragment to Scrap Shield. 01371_ Sub. Laser destroyed. 01371_ Wheel destroyed. 01375_ Acquired 3 matter. 01377_ Battle Rifle destroyed. 01378_ VW-XBQ(R) affixes Scrap Shield Fragment to Scrap Shield. 01382_ Acquired Beamcaster. 01382_ VW-XBQ(R) affixes Scrap Shield Fragment to Scrap Shield. 01384_ ZP-P4B(R) affixes Scrap Shield Fragment to Scrap Shield. 01388_ VW-XBQ(R) affixes Scrap Shield Fragment to Scrap Shield. 01391_ Beamcaster destroyed. 01396_ Subatomizers dissect the Carbon-fiber Leg. 01402_ Sub. Monowheel destroyed. Map ----- +----------------------------------------------------+ | ######### &= ##?##"""????????????????????? | | # #??????# " ###""""" ???????????????????? | | # ##??###?# "" """"" ???????????????????? | | ### # ## """#""""" ???????????????????? | | ###"""""????????????????????? | | ## ### ##??? ###????????????????????? | | ##????# # # ### #????"#??????????????????????? | | #????## ####?####?????"??????????????????????? | | ???# ######???###??"??????????????????????? | | ##??## # [###? ?????????????????????????? | | # ### =!&& #? ????????????????????????? | | # = &* %#### #????????????????????????? | | ##! #?# "#????????????????????????? | | ### # ### "#????????????????????????? | | ?#### ## #? ""##???????????????????????? | | ## ##!& ###"""#???????????????????????? | | # ##%!" ## ######?????#?????????????? | | ##%&"" ### #?????????????? | | ####"""" " #??????????????? | | ##??# ##" "" #??????????????? | | # ## ##???## """ ## ### #??????????????? | | ###?# ###???# ###""" ##??#???????????????????? | | ????# ## ## ?##"" "##?????????????????????? | | ????###### ??#"" ""#?????????????????????? | | ????????## ??### #?????????????????????? | | ????????# ####### @ #?????????????????????? | | ????????# #?# ## #?????????????????????? | | ?????????# #??# %#?????????????????????? | | ??????????? #?## ##?????????????????????? | | ??????????????# ### ##????????????????????? | | ??????????????# = != #????????????????????? | | ??????????????## ! %R! ### ##????????????????????? | | ???????????????#!=%=R###?? #?????????????????????? | | ??????????????# %=%###????##?????????????????????? | | ??????????? *!% #?????????????????????????????? | | ???????? !<%!% ?????????????????????????????? | | ????????### *"!%! = ?????????????????????????????? | | ??????????##% % """?????????????????????????????? | | ???????????#= [ # "?????????????????????????????? | | ???????????"[" ####?????????????????????????????? | | ???????????#####?????????????????????????????????? | | ?????????????????????????????????????????????????? | | ?????????????????????????????????????????????????? | | ?????????????????????????????????????????????????? | | ?????????????????????????????????????????????????? | | ?????????????????????????????????????????????????? | | ?????????????????????????????????????????????????? | | ?????????????????????????????????????????????????? | | ?????????????????????????????????????????????????? | | ?????????????????????????????????????????????????? | +----------------------------------------------------+ Best States ------------- Heat Dissipation 25 Energy Generation 15 Energy Capacity 250 Matter Stores 300 Matter Capacity 300 Sight Range 16 Terrain Scan Density 10 Evasion (%) 50 Item Schematics ----------------- None Robot Schematics ------------------ None Fabricated ------------ Nothing Alien Tech Used ----------------- None Achievements -------------- None Challenges ------------ None Game ------ Seed MomentumShadeNanosword Manual? 0 Play Time 00:16:03 Cumulative 7.6 hours Start 2024.04.11 @ 00:11:50 End 2024.04.12 @ 19:02:01 Sessions 1 Manual Loads 0 Difficulty Rogue Special Mode None Game No. 20 Rogue 20 Adventurer 0 Explorer 0 Win Type - Total 0 Types 0/0/0/0/0/0/0/0/0 Lore% 16 Gallery% 13 Achievement% 15 Wizard Run 0 Options --------- Layout 1 ASCII 1 Keyboard 0 Movement Arrows Keybinds 0 Fullscreen 1 Font 24/Smallcaps Map View 50x35 Zoom Use 0% Tactical HUD 1 Map Filters NONE Filters NONE Steam 1 RUN: d288cc88-b4fd-426e-a769-d6a537edb369